bitfinex/quotes_SOLUSD_20250928
["timestamp","ask_amount","ask_price","bid_price","bid_amount"]
[1759065578931,26.0,200.03,199.96,5.70094106]
[1759065580436,26.1,200.03,199.96,0.7]
[1759065580745,0.1,200.03,199.96,0.7]
[1759065580928,26.1,200.03,199.96,0.7]
[1759065581543,133.6,200.02,199.96,0.7]
[1759065582050,133.6,200.02,199.96,5.70087907]
[1759065585745,133.6,200.02,199.97,14.29559401]
[1759065586063,133.6,200.02,199.98,0.7]
[1759065588436,133.6,200.02,199.98,5.70048447]
[1759065588634,133.6,200.09,199.99,14.29559401]
[1759065588940,133.6,200.09,200.01,13.59559401]
[1759065589139,133.6,200.09,200.03,13.59559401]
[1759065589339,133.6,200.09,200.03,14.29559401]
[1759065589538,133.6,200.09,200.03,13.59559401]
[1759065589774,133.6,200.09,200.03,14.29559401]
[1759065590286,133.6,200.09,200.03,19.29472524]
[1759065590935,133.6,200.09,200.04,0.69]
[1759065591135,133.6,200.09,200.05,0.69]
[1759065591359,133.6,200.09,200.06,0.69]
[1759065591658,133.6,200.09,200.07,0.69]
[1759065592064,133.7,200.15,200.08,0.69]
[1759065592358,26.0,200.12,200.08,0.69]
[1759065592933,133.6,200.15,200.09,0.69]
[1759065593150,133.6,200.15,200.1,13.59559401]
[1759065593356,0.1,200.18,200.12,13.59559401]
[1759065593555,0.1,200.2,200.13,0.69]
[1759065593760,26.0,200.18,200.13,0.69]
[1759065594143,0.1,200.2,200.14,4.99650244]
[1759065595569,0.1,200.2,200.13,0.69]
[1759065596263,0.1,200.2,200.13,5.68666092]
[1759065596764,0.1,200.22,200.15,13.59559401]
[1759065596991,0.1,200.22,200.16,0.69]
[1759065597348,26.1,200.22,200.16,0.69]
[1759065598072,0.1,200.22,200.16,0.69]
[1759065598748,69.12164446,200.24,200.16,0.69]
[1759065598955,0.1,200.23,200.16,0.69]
[1759065600273,0.1,200.22,200.13,0.69]
[1759065600443,0.1,200.21,200.11,0.69]
[1759065600641,0.1,200.2,200.11,0.69]
[1759065601265,26.0,200.19,200.11,0.69]
[1759065601486,26.1,200.19,200.11,0.69]
[1759065602155,0.1,200.18,200.09,0.69]
[1759065602369,0.1,200.17,200.1,0.69]
[1759065604265,26.1,200.19,200.1,0.69]
[1759065604583,26.1,200.19,200.1,5.68748219]
[1759065604750,26.1,200.19,200.11,0.69]
[1759065605157,133.6,200.18,200.11,0.69]
[1759065606056,133.6,200.18,200.13,4.99675211]
[1759065606251,133.7,200.18,200.05,26.0]
[1759065606556,133.7,200.18,200.11,0.69]
[1759065606557,0.1,200.17,200.11,0.69]
[1759065606757,0.1,200.17,200.11,26.69]
[1759065608251,133.6,200.18,200.11,26.69]
[1759065608457,133.6,200.18,200.12,0.69]
[1759065610678,0.1,200.17,200.04,13.59559401]
[1759065610867,0.1,200.16,200.09,0.7]
[1759065613876,0.1,200.15,200.07,0.7]
[1759065614066,26.0,200.14,200.07,0.7]
[1759065614469,133.6,200.18,200.07,5.69824161]
[1759065614676,26.0,200.15,200.08,0.7]
[1759065614979,133.6,200.18,200.08,0.7]
[1759065614980,133.6,200.18,200.09,13.59559401]
[1759065615179,133.6,200.18,200.11,13.59559401]
[1759065615369,133.6,200.18,200.12,0.7]
[1759065615571,38.86,200.2,200.12,0.7]
[1759065615867,26.0,200.19,200.12,0.7]
[1759065616458,133.6,200.22,200.12,5.69698269]
[1759065616666,26.0,200.19,200.13,0.7]
[1759065617384,159.6,200.22,200.13,0.7]
[1759065617678,133.6,200.22,200.13,0.7]
[1759065617876,133.6,200.22,200.14,4.99650244]
[1759065618074,133.6,200.22,200.15,0.7]
[1759065619857,133.6,200.22,200.16,4.99600319]
[1759065620059,133.6,200.22,200.17,0.7]
[1759065620259,133.6,200.22,200.18,0.7]
[1759065620459,133.6,200.22,200.19,0.71]
[1759065622863,0.2,200.24,200.2,0.71]
[1759065623459,0.2,200.24,200.21,0.71]
[1759065624187,0.2,200.24,200.22,0.71]
[1759065624376,0.2,200.24,200.23,0.71]
[1759065624766,0.2,200.24,200.2,13.59559401]
[1759065625078,0.2,200.24,200.22,0.71]
[1759065625385,0.2,200.24,200.2,13.59559401]
[1759065625681,26.0,200.21,200.09,0.71]
[1759065625989,39.02,200.2,200.1,13.59559401]
[1759065626162,0.1,200.19,200.1,14.30559401]
[1759065626684,0.1,200.19,200.1,19.30308034]
[1759065626863,0.1,200.19,200.11,0.71]
[1759065627165,26.0,200.21,200.11,0.71]
[1759065627166,0.1,200.21,200.11,0.71]
[1759065627359,38.92,200.22,200.11,0.71]
[1759065627560,0.1,200.2,200.11,0.71]
[1759065627981,26.1,200.2,200.11,0.71]
[1759065628665,26.1,200.2,200.11,5.70723807]
[1759065628866,0.1,200.2,200.12,0.71]
[1759065631489,0.1,200.19,200.1,14.30559401]
[1759065631690,0.1,200.19,200.11,0.71]
[1759065631872,26.0,200.17,199.99,25.00099434]
[1759065632188,133.6,200.16,200.08,0.71]
[1759065633262,133.6,200.16,200.09,13.59559401]
[1759065633467,133.6,200.16,200.1,0.71]
[1759065633868,133.6,200.16,200.11,13.59559401]
[1759065634183,133.6,200.16,200.12,0.71]
[1759065635189,133.6,200.16,200.12,5.70680373]
[1759065635689,133.6,200.16,200.13,0.71]
[1759065635888,133.6,200.21,200.14,13.59559401]
[1759065636078,159.6,200.23,200.15,0.71]
[1759065637392,159.6,200.23,200.15,5.70618766]
[1759065637787,159.6,200.23,200.15,0.71]
[1759065638301,0.2,200.24,200.16,13.59559401]
[1759065638466,0.2,200.24,200.17,0.71]
[1759065638666,0.2,200.24,200.18,13.59559401]
[1759065638867,0.2,200.24,200.19,0.71]
[1759065639097,0.2,200.24,200.2,0.71]
[1759065639279,0.2,200.24,200.18,13.59559401]
[1759065639678,26.2,200.24,200.18,13.59559401]
[1759065639879,26.2,200.24,200.18,14.30559401]
[1759065642608,26.2,200.24,200.19,0.71]
[1759065642774,26.2,200.24,200.2,0.71]
[1759065643579,0.2,200.24,200.21,0.71]
[1759065643779,26.2,200.24,200.15,31.08247884]
[1759065644082,26.2,200.24,200.19,0.71]
[1759065644280,0.2,200.24,200.21,13.59559401]
[1759065644587,0.2,200.24,200.22,0.71]
[1759065644991,0.2,200.24,200.2,0.71]
[1759065645401,0.2,200.24,200.17,13.59559401]
[1759065645597,0.2,200.24,200.17,14.30559401]
[1759065645898,0.2,200.24,200.18,0.71]
[1759065646482,0.2,200.24,200.18,5.70547203]
[1759065646680,0.2,200.24,200.19,0.71]
[1759065646883,0.2,200.24,200.2,0.71]
[1759065648100,0.2,200.24,200.17,13.59559401]
[1759065648405,0.2,200.24,200.21,0.71]
[1759065651594,0.2,200.24,200.22,0.72]
[1759065651794,0.2,200.24,200.23,0.72]
[1759065654104,133.3,200.28,200.23,0.72]
[1759065654305,133.3,200.28,200.24,0.72]
[1759065654510,133.3,200.28,200.25,0.72]
[1759065655311,133.3,200.28,200.22,0.72]
[1759065655494,133.4,200.28,200.2,0.72]
[1759065655997,3.36290052,200.27,200.2,0.72]
[1759065656187,26.0,200.25,200.18,0.72]
[1759065657314,29.36461515,200.25,200.18,0.72]
[1759065658799,0.1,200.24,200.15,14.31559401]
[1759065658996,26.0,200.2,200.12,0.72]
[1759065659811,26.0,200.2,200.12,5.71696755]
[1759065659991,26.0,200.2,200.13,0.72]
[1759065660498,26.1,200.2,200.13,0.72]
[1759065661915,26.0,200.18,200.1,0.72]
[1759065662123,26.0,200.16,200.07,0.72]
[1759065662295,39.0,200.17,200.07,0.72]
[1759065662501,65.02,200.16,200.07,0.72]
[1759065662709,65.04,200.16,200.07,0.72]
[1759065662914,0.1,200.15,200.07,0.72]
[1759065663125,0.1,200.14,200.07,0.72]
[1759065664933,38.94,200.15,200.08,13.59559401]
[1759065665121,26.0,200.16,200.09,0.72]
[1759065665895,0.1,200.15,200.07,0.72]
[1759065666811,26.0,200.13,200.07,0.72]
[1759065667595,64.94,200.16,200.08,13.59559401]
[1759065667796,26.0,200.16,200.09,0.72]
[1759065667993,26.0,200.15,200.09,0.72]
[1759065669620,133.3,200.19,200.1,13.59559401]
[1759065669810,133.4,200.18,200.07,0.72]
[1759065670009,38.94,200.17,200.08,13.59559401]
[1759065670312,159.3,200.18,200.09,0.72]
[1759065670515,0.1,200.22,200.1,13.59559401]
[1759065670718,26.0,200.19,200.12,13.59559401]
[1759065670901,133.3,200.23,200.14,13.59559401]
[1759065671108,133.3,200.23,200.15,0.66]
[1759065671305,198.36,200.23,200.15,0.66]
[1759065671507,159.3,200.23,200.15,5.65606198]
[1759065671826,133.3,200.23,200.16,0.66]
[1759065673626,133.3,200.23,200.16,5.65597208]
[1759065673805,133.3,200.23,200.17,0.66]
[1759065675722,133.4,200.23,200.15,0.66]
[1759065675932,0.1,200.22,200.15,0.66]
[1759065676824,0.1,200.21,200.13,5.65669624]
[1759065677024,26.1,200.2,200.13,0.66]
[1759065677733,65.14,200.2,200.13,0.66]
[1759065678032,65.12,200.2,200.13,0.66]
[1759065678628,0.1,200.19,200.13,0.66]
[1759065679317,0.1,200.19,200.11,0.66]
[1759065679632,39.02,200.18,200.11,0.66]
[1759065680131,39.02,200.18,200.11,5.65724156]
[1759065680333,65.12,200.19,200.11,5.65724156]
[1759065682440,65.12,200.19,200.11,0.66]
[1759065682441,0.1,200.18,200.11,0.66]
[1759065682740,39.1,200.18,200.11,0.66]
[1759065682912,0.1,200.17,200.09,0.69]
[1759065684321,0.1,200.17,200.09,5.68770586]
[1759065684640,0.1,200.17,200.1,0.69]
[1759065685224,43.97571668,200.18,200.1,0.69]
[1759065685431,26.0,200.14,200.07,0.69]
[1759065685735,4.99670557,200.14,200.04,0.69]
[1759065685912,39.12,200.13,200.04,0.69]
[1759065686228,39.12,200.12,200.05,26.0]
[1759065686426,39.1,200.12,200.05,26.0]
[1759065686627,133.3,200.17,200.01,13.59559401]
[1759065686845,0.1,200.12,200.05,0.69]
[1759065687020,39.1,200.13,200.05,0.69]
[1759065687943,0.1,200.12,200.05,0.69]
[1759065688453,39.0,200.12,200.05,5.68874016]
[1759065688623,0.1,200.13,200.06,0.69]
[1759065688952,39.1,200.13,200.06,0.69]
[1759065689121,39.0,200.12,200.06,0.69]
[1759065689525,39.1,200.12,200.04,0.69]
[1759065689728,26.0,200.08,199.91,25.01125506]
[1759065690023,26.0,200.08,200.0,0.69]
[1759065690221,0.1,200.07,200.0,0.69]
[1759065690422,0.1,200.06,199.97,14.28559401]
[1759065690639,0.1,200.05,199.98,0.69]
[1759065691535,26.0,200.03,199.92,17.5070028]
[1759065691728,26.0,200.03,199.96,0.69]
[1759065692526,26.1,200.03,199.96,0.69]
[1759065692736,26.0,200.03,199.96,0.69]
[1759065692943,65.02,200.03,199.96,0.69]
[1759065694127,26.0,200.03,199.96,0.69]
[1759065694325,65.02,200.03,199.96,0.69]
[1759065694733,26.0,200.03,199.96,0.69]
[1759065694932,65.0,200.03,199.96,0.69]
[1759065695142,26.0,200.03,199.96,5.69087165]
[1759065695438,26.0,200.02,199.97,0.69]
[1759065696222,26.0,200.02,199.97,5.69065613]
[1759065696421,26.0,200.02,199.98,0.69]
[1759065696665,133.3,200.06,199.98,0.69]
[1759065696957,198.32,200.06,199.98,0.69]
[1759065697546,133.3,200.05,199.98,0.69]
[1759065697759,133.4,200.05,199.94,0.69]
[1759065697936,39.1,200.04,199.94,0.69]
[1759065698256,26.0,200.01,199.94,0.69]
[1759065698623,65.02,200.02,199.94,5.69145572]
[1759065698938,26.0,200.02,199.95,0.69]
[1759065700151,26.0,200.02,199.95,5.69106298]
[1759065700338,26.0,200.02,199.96,0.69]
[1759065702133,26.0,200.02,199.96,5.69099348]
[1759065702326,39.0,200.04,199.97,0.69]
[1759065702526,159.4,200.05,199.97,0.69]
[1759065702727,198.4,200.05,199.97,0.69]
[1759065703354,133.3,200.04,199.97,5.6907394]
[1759065704847,133.4,200.04,199.97,5.6907394]
[1759065705535,0.1,200.03,199.94,14.28559401]
[1759065705737,0.1,200.02,199.94,14.28559401]
[1759065706650,0.1,200.02,199.94,13.59559401]
[1759065706832,133.4,200.04,199.95,5.69122021]
[1759065707148,172.4,200.04,199.96,0.69]
[1759065707350,133.4,200.04,199.96,0.69]
[1759065707554,172.38,200.04,199.96,0.69]
[1759065707948,133.4,200.04,199.96,0.69]
[1759065708145,172.38,200.04,199.96,0.69]
[1759065708751,172.38,200.04,199.96,5.69091537]
[1759065709048,172.38,200.04,199.97,0.69]
[1759065709249,133.3,200.03,199.97,0.69]
[1759065710545,26.0,200.05,199.98,13.59559401]
[1759065710747,133.3,200.09,200.0,13.59559401]
[1759065711052,133.4,200.09,200.01,0.65]
[1759065711255,133.3,200.17,200.02,13.59559401]
[1759065711456,0.1,200.14,200.04,13.59559401]
[1759065711637,65.12,200.13,200.05,0.65]
[1759065712445,39.12,200.13,200.05,5.64860738]
[1759065713161,0.1,200.12,200.05,0.65]
[1759065714375,0.1,200.11,200.01,0.65]
[1759065714595,0.1,200.1,199.99,0.65]
[1759065714744,0.1,200.09,199.97,0.65]
[1759065714944,26.0,200.05,199.97,0.65]
[1759065715143,39.04,200.04,199.97,0.65]
[1759065715648,0.1,200.08,199.98,13.59559401]
[1759065715857,26.0,200.04,199.99,0.65]
[1759065716164,26.0,200.04,199.97,13.59559401]
[1759065716165,26.0,200.04,200.0,0.65]
[1759065716551,26.1,200.04,199.97,5.65070771]
[1759065716869,0.1,200.04,199.97,5.65070771]
[1759065717166,26.0,200.05,199.98,0.65]
[1759065717954,0.1,200.06,199.98,0.65]
[1759065718268,39.14,200.06,199.98,0.65]
[1759065718656,39.14,200.06,199.98,5.65048461]
[1759065718844,39.14,200.06,199.99,0.65]
[1759065719454,39.04,200.06,199.99,0.65]
[1759065719662,172.34,200.07,199.99,0.65]
[1759065720172,172.32,200.07,199.99,5.65020132]
[1759065720772,172.42,200.07,199.99,5.65020132]
[1759065721179,172.42,200.07,199.99,0.65]
[1759065722288,172.42,200.07,199.99,5.65024804]
[1759065722789,133.3,200.07,200.0,13.59559401]
[1759065723081,26.0,200.09,200.02,13.59559401]
[1759065723289,26.0,200.11,200.03,0.65]
[1759065723659,65.02,200.11,200.03,0.65]
[1759065723889,39.02,200.11,200.03,0.65]
[1759065724384,0.1,200.1,200.03,0.65]
[1759065724684,0.1,200.09,200.01,4.99971603]
[1759065724880,0.1,200.09,200.01,5.64971603]
[1759065725185,0.1,200.09,200.02,0.65]
[1759065725586,39.12,200.09,200.02,0.65]
[1759065726279,39.12,200.09,200.02,5.64940771]
[1759065726486,0.1,200.09,200.03,0.65]
[1759065727380,39.0,200.1,200.03,0.65]
[1759065728563,0.1,200.09,200.03,0.65]
[1759065728765,0.1,200.08,200.01,0.65]
[1759065731368,65.0,200.09,200.01,0.65]
[1759065732073,65.0,200.09,200.01,5.64971436]
[1759065732284,65.0,200.09,200.02,0.67]
[1759065732595,26.0,200.09,200.02,0.67]
[1759065732799,64.98,200.09,200.02,0.67]
[1759065732972,133.3,200.08,200.02,0.67]
[1759065734078,133.3,200.07,199.98,13.59559401]
[1759065734389,133.3,200.07,199.99,0.67]
[1759065734695,0.1,200.06,199.99,0.67]
[1759065737386,172.24,200.07,199.99,0.67]
[1759065737588,172.34,200.07,199.99,0.67]
[1759065737888,133.3,200.07,200.0,13.59559401]
[1759065738087,133.3,200.07,200.01,0.67]
[1759065738288,133.3,200.07,200.02,13.59559401]
[1759065738483,133.3,200.13,200.03,26.67]
[1759065738795,3.36960067,200.12,200.04,14.26559401]
[1759065738992,3.36960067,200.12,200.05,0.67]
[1759065739789,3.36960067,200.12,200.05,5.66859849]
[1759065740089,172.26,200.13,200.06,0.67]
[1759065740880,133.3,200.13,200.06,0.67]
[1759065741097,172.26,200.13,200.06,0.67]
[1759065741700,133.3,200.13,200.06,5.66846129]
[1759065742008,172.24,200.13,200.07,0.68]
[1759065743308,133.3,200.13,200.07,5.678231]
[1759065743487,133.3,200.13,200.08,0.68]
[1759065743804,26.0,200.15,200.09,0.68]
[1759065743995,29.36766456,200.15,200.09,0.68]
[1759065745308,26.0,200.15,200.09,0.68]
[1759065746205,133.3,200.16,200.1,13.59559401]
[1759065746388,172.48,200.22,200.11,0.68]
[1759065746590,42.42551672,200.21,200.11,0.68]
[1759065746805,3.36551672,200.21,200.12,13.59559401]
[1759065747125,39.06,200.23,200.14,13.59559401]
[1759065747308,39.06,200.23,200.15,0.68]
[1759065747508,65.06,200.23,200.15,5.67620293]
[1759065747807,3.36500623,200.22,200.15,5.67620293]
[1759065748304,65.04,200.23,200.15,4.99620293]
[1759065748510,3.36126813,200.22,200.16,0.68]
[1759065748808,3.36126813,200.22,200.1,52.53559401]
[1759065749009,0.1,200.21,200.13,13.59559401]
[1759065749209,0.1,200.21,200.14,0.68]
[1759065749506,0.1,200.21,200.14,5.67647196]
[1759065749897,0.1,200.21,200.14,0.68]
[1759065750096,0.1,200.2,200.12,0.68]
[1759065750301,0.1,200.19,200.12,0.68]
[1759065750493,39.06,200.19,200.12,0.68]
[1759065754402,0.1,200.19,200.12,0.68]
[1759065754595,133.3,200.21,200.12,5.67685491]
[1759065754796,133.3,200.21,200.13,0.68]
[1759065755312,133.3,200.21,200.14,13.59559401]
[1759065755512,133.3,200.21,200.15,0.68]
[1759065756102,133.3,200.21,200.16,4.99600319]
[1759065756421,133.3,200.21,200.17,0.68]
[1759065756718,133.3,200.21,200.18,0.68]
[1759065758803,133.3,200.21,200.19,0.68]
[1759065759395,133.3,200.21,200.17,0.68]
[1759065759606,133.3,200.21,200.18,0.68]
[1759065763896,133.3,200.21,200.19,0.68]
[1759065764101,0.1,200.2,200.14,14.27559401]
[1759065764421,133.3,200.21,200.1,12.49338418]
[1759065764422,0.1,200.19,200.11,0.68]
[1759065764628,0.1,200.18,200.1,15.03118971]
[1759065764817,39.0,200.17,200.08,0.68]
[1759065765014,0.1,200.17,200.09,13.59559401]
[1759065765212,39.0,200.16,200.09,13.59559401]
[1759065765518,0.1,200.16,200.08,18.5935477]
[1759065765822,38.9,200.18,200.1,0.68]
[1759065766005,39.0,200.18,200.1,0.68]
[1759065767500,0.1,200.17,200.1,0.68]
[1759065767803,30.99526807,200.19,200.1,0.68]
[1759065768003,0.1,200.17,200.08,14.27559401]
[1759065768208,0.1,200.16,200.08,14.27559401]
[1759065769018,0.1,200.16,200.08,19.27356959]
[1759065769216,0.1,200.16,200.09,0.68]
[1759065770003,38.88,200.17,200.09,0.68]
[1759065770203,38.88,200.17,200.09,5.67767275]
[1759065770423,26.0,200.19,200.1,0.68]
[1759065770625,38.88,200.17,200.1,0.68]
[1759065770931,38.98,200.18,200.1,0.68]
[1759065771122,0.1,200.18,200.1,0.68]
[1759065771429,38.98,200.18,200.1,0.68]
[1759065771630,133.3,200.17,200.1,0.68]
[1759065772005,133.3,200.17,200.1,5.6774939]
[1759065772210,133.3,200.17,200.11,0.68]
[1759065772511,133.3,200.17,200.08,13.59559401]
[1759065772721,133.3,200.17,200.09,0.68]
[1759065773106,133.3,200.17,200.1,13.59559401]
[1759065773310,133.3,200.17,200.08,13.59559401]
[1759065773527,0.1,200.16,200.09,0.68]
[1759065773931,133.3,200.17,200.09,0.68]
[1759065774124,133.3,200.17,200.09,5.67772804]
[1759065774612,133.4,200.17,200.09,5.67772804]
[1759065775316,172.18,200.17,200.09,0.68]
[1759065775634,0.1,200.16,200.09,0.68]
[1759065777808,172.16,200.17,200.09,5.67775047]
[1759065778008,172.16,200.17,200.1,0.68]
[1759065778424,0.1,200.16,200.08,0.68]
[1759065778629,38.94,200.16,200.08,0.68]
[1759065779130,0.1,200.16,200.08,0.68]
[1759065779439,38.94,200.16,200.08,0.68]
[1759065780012,0.1,200.16,200.08,0.68]
[1759065780315,38.94,200.16,200.08,0.68]
[1759065780711,38.84,200.16,200.08,5.6779908]
[1759065780916,172.12,200.17,200.09,0.68]
[1759065781320,133.4,200.17,200.09,0.68]
[1759065781531,172.22,200.17,200.09,0.68]
[1759065781735,133.3,200.17,200.1,13.59559401]
[1759065782038,26.0,200.19,200.12,13.59559401]
[1759065782224,26.0,200.19,200.13,0.68]
[1759065782431,3.36355807,200.2,200.13,0.68]
[1759065782626,42.20355807,200.21,200.13,0.68]
[1759065782831,42.30355807,200.21,200.13,0.68]
[1759065783027,42.20355807,200.21,200.13,0.68]
[1759065783234,0.1,200.2,200.13,0.68]
[1759065783537,38.94,200.2,200.13,0.68]
[1759065783711,0.1,200.2,200.13,0.68]
[1759065784236,3.46355807,200.2,200.13,0.68]
[1759065785037,42.18355807,200.21,200.13,5.67673474]
[1759065785240,3.36355807,200.2,200.14,0.68]
[1759065785423,3.36355807,200.21,200.14,0.68]
[1759065785630,159.3,200.22,200.14,0.68]
[1759065786739,159.3,200.22,200.14,5.67636793]
[1759065786915,159.3,200.22,200.15,0.68]
[1759065787121,3.36814799,200.21,200.15,0.68]
[1759065788537,3.36814799,200.21,200.16,13.59559401]
[1759065788741,133.3,200.22,200.17,5.67560892]
[1759065788941,133.3,200.22,200.18,0.68]
[1759065789243,133.3,200.22,200.19,0.68]
[1759065789414,133.3,200.22,200.2,0.68]
[1759065791134,133.3,200.22,200.18,0.71]
[1759065791314,133.3,200.22,200.19,0.71]
[1759065792043,133.3,200.22,200.2,0.71]
[1759065792338,26.0,200.25,200.21,0.71]
[1759065792517,3.36855938,200.27,200.22,0.71]
[1759065792719,3.36855938,200.26,200.22,0.71]
[1759065792939,3.36855938,200.27,200.23,0.71]
[1759065793130,3.36855938,200.27,200.2,13.59559401]
[1759065793329,3.36855938,200.27,200.21,0.71]
[1759065793532,133.3,200.28,200.21,0.71]
[1759065794222,133.3,200.28,200.22,4.99450604]
[1759065794538,133.3,200.28,200.23,0.71]
[1759065794853,133.3,200.28,200.24,0.71]
[1759065795240,133.3,200.28,200.25,0.71]
[1759065797945,133.3,200.28,200.23,0.71]
[1759065798145,133.3,200.28,200.24,0.71]
[1759065798539,0.1,200.27,200.2,0.71]
[1759065798928,133.3,200.28,200.21,13.59559401]
[1759065799128,133.3,200.28,200.22,0.71]
[1759065799953,133.3,200.28,200.2,15.73591971]
[1759065799954,0.1,200.27,200.2,15.73591971]
[1759065800134,0.1,200.26,200.2,0.71]
[1759065801055,133.4,200.28,200.2,0.71]
[1759065801555,0.1,200.27,200.2,0.71]
[1759065801738,172.06,200.28,200.2,0.71]
[1759065801940,0.1,200.26,200.2,0.71]
[1759065803737,133.3,200.28,200.2,26.71]
[1759065803932,172.04,200.28,200.21,26.7]
[1759065804245,172.04,200.28,200.22,0.7]
[1759065804446,133.3,200.27,200.22,0.7]
[1759065805452,133.4,200.27,200.22,0.7]
[1759065806054,133.3,200.27,200.22,0.7]
[1759065806560,133.4,200.27,200.22,0.7]
[1759065807258,133.4,200.27,200.21,26.0]
[1759065807659,133.4,200.27,200.21,0.7]
[1759065808150,133.3,200.27,200.21,26.7]
[1759065808452,133.3,200.27,200.22,0.7]
[1759065808861,133.3,200.27,200.23,0.7]
[1759065809663,133.3,200.27,200.24,0.7]
[1759065810033,133.3,200.27,200.22,0.7]
[1759065810231,133.3,200.27,200.23,0.7]
[1759065810657,133.3,200.27,200.2,13.59559401]
[1759065810843,133.3,200.27,200.23,0.7]
[1759065812658,0.1,200.29,200.23,0.7]
[1759065812849,38.82,200.29,200.22,0.7]
[1759065813254,0.1,200.29,200.22,0.7]
[1759065813455,38.82,200.29,200.22,0.7]
[1759065813650,38.72,200.29,200.22,0.7]
[1759065813841,4.00759367,200.33,200.22,5.69450454]
[1759065814042,65.13299789,200.37,200.22,5.69450454]
[1759065814043,26.0,200.29,200.23,0.7]
[1759065814742,26.1,200.29,200.23,0.7]
[1759065816465,26.0,200.29,200.17,26.0]
[1759065816654,0.1,200.28,200.19,0.7]
[1759065816973,0.1,200.27,200.19,0.7]
[1759065817648,0.1,200.27,200.19,5.6952352]
[1759065817848,0.1,200.27,200.2,0.7]
[1759065818968,64.82,200.26,200.17,0.7]
[1759065819345,0.1,200.25,200.17,0.7]
[1759065819558,0.1,200.24,200.17,0.7]
[1759065820758,0.1,200.27,200.17,0.7]
[1759065820958,26.0,200.24,200.17,5.6957287]
[1759065821257,39.59559401,200.27,200.18,14.29559401]
[1759065821437,13.59559401,200.27,200.19,0.7]
[1759065821632,38.74,200.28,200.19,0.7]
[1759065821837,26.0,200.25,200.19,0.7]
[1759065822264,26.0,200.25,200.19,5.69502207]
[1759065822471,26.0,200.25,200.2,0.7]
[1759065823138,26.0,200.25,200.2,5.69500014]
[1759065823338,26.0,200.25,200.21,0.7]
[1759065823538,26.0,200.25,200.22,0.7]
[1759065825162,26.0,200.25,200.19,4.99519275]
[1759065825345,26.0,200.26,200.21,0.7]